bitfinex-derivatives/quotes_BNBF0:USTF0_20250126
["timestamp","ask_amount","ask_price","bid_price","bid_amount"]
[1737926160635,0.29314767,682.25,680.97,0.26962969]
[1737926160833,0.29314767,682.25,680.94,0.26962969]
[1737926161032,0.29314767,682.25,680.95,0.26962969]
[1737926161228,0.29314767,682.25,680.96,0.26962969]
[1737926161430,0.29314767,682.25,681.09,1.09705449]
[1737926164838,0.29314767,682.25,681.06,1.09705449]
[1737926167239,0.29314767,682.25,681.08,1.09705449]
[1737926170540,0.29314767,682.25,681.09,0.26963095]
[1737926172940,0.29314767,682.25,681.14,1.09705449]
[1737926176146,0.29314767,682.25,681.16,1.09705449]
[1737926178351,1.53143737,682.24,681.17,1.09705449]
[1737926178646,0.29315626,682.23,681.17,1.09705449]
[1737926180549,0.29315626,682.23,681.14,1.09705449]
[1737926180750,0.29315626,682.23,681.15,0.26963533]
[1737926181445,0.29315626,682.23,681.14,1.09705449]
[1737926181652,0.29315626,682.23,681.15,0.26963165]
[1737926183147,0.29315626,682.23,681.14,1.09705449]
[1737926183454,0.29315626,682.23,681.2,1.09705449]
[1737926188657,0.29315626,682.23,681.19,1.09705449]
[1737926190059,0.29315626,682.23,681.2,0.26963187]
[1737926190652,0.29315626,682.23,681.19,1.09705449]
[1737926190653,0.29315626,682.23,681.21,0.26963123]
[1737926190858,0.29315626,682.23,681.19,1.09705449]
[1737926191160,0.29315626,682.23,681.2,0.26962908]
[1737926191865,0.29315626,682.23,681.24,1.09705449]
[1737926193063,0.29315626,682.23,681.25,0.26963473]
[1737926193260,0.29315626,682.23,681.24,1.09705449]
[1737926194564,0.29315626,682.23,681.28,1.09705449]
[1737926197664,0.29315626,682.23,681.29,1.09705449]
[1737926201969,0.29315626,682.23,681.3,1.09705449]
[1737926204966,0.29315626,682.23,681.09,1.09705449]
[1737926210865,0.29315626,682.23,681.08,1.09705449]
[1737926214371,0.29315626,682.23,681.1,1.09705449]
[1737926217376,0.29315626,682.23,681.09,1.09705449]
[1737926219473,0.29315626,682.23,681.1,0.2696515]
[1737926223286,0.29315626,682.23,681.17,1.09705449]
[1737926224981,0.29315626,682.23,681.18,0.26964672]
[1737926225985,0.29315626,682.23,681.18,1.36670121]
[1737926226186,0.29315626,682.23,681.19,0.26964672]
[1737926228484,0.29315626,682.23,681.23,1.09705449]
[1737926228683,0.29315626,682.23,681.24,0.26964672]
[1737926232591,0.29315626,682.23,681.23,1.09705449]
[1737926232891,0.29315626,682.23,681.24,0.26965029]
[1737926233194,0.29315626,682.23,681.26,1.09705449]
[1737926236789,1.38913116,682.23,681.26,1.09705449]
[1737926239791,0.29315626,682.23,681.2,1.09705449]
[1737926242397,0.29315626,682.23,681.14,1.09705449]
[1737926245393,0.29315626,682.23,680.95,1.09705449]
[1737926250902,0.29315626,682.23,680.97,1.09705449]
[1737926252004,0.29315626,682.23,680.98,0.26964343]
[1737926252601,0.29315626,682.23,680.99,0.26964322]
[1737926252802,0.29315626,682.23,681.0,0.26964322]
[1737926253003,0.29315626,682.23,680.98,0.26964322]
[1737926253204,0.29315626,682.23,680.99,0.26964322]
[1737926253498,0.29315626,682.23,680.97,1.09705449]
[1737926253704,0.29315626,682.23,680.98,0.26964369]
[1737926260914,0.29315626,682.23,680.99,0.26964613]
[1737926261213,0.29315626,682.23,680.97,1.09705449]
[1737926261214,0.29315626,682.23,681.0,0.26964613]
[1737926261414,0.29315626,682.23,681.01,0.26964613]
[1737926261713,0.29315626,682.23,681.02,0.26964613]
[1737926261913,0.29315626,682.23,681.03,0.26964613]
[1737926262114,0.29315626,682.23,681.04,0.26964613]
[1737926262309,0.29315626,682.23,681.05,0.26964613]
[1737926262512,0.29315626,682.23,680.97,1.09705449]
[1737926262513,0.29315626,682.23,680.98,0.26964613]
[1737926262712,0.29315626,682.23,680.99,0.26964691]
[1737926263015,0.29315626,682.23,681.21,1.09705449]
[1737926265622,0.29315626,682.23,681.24,1.09705449]
[1737926272423,0.29315626,682.23,681.04,1.09550909]
[1737926272424,0.29315626,682.23,681.07,1.09705449]
[1737926275027,0.29315626,682.23,680.9,1.09705449]
[1737926276324,0.29315626,682.23,680.91,0.26968055]
[1737926276722,0.29315626,682.23,680.9,1.09705449]
[1737926276927,0.29315626,682.23,680.91,0.26967985]
[1737926278229,0.29315626,682.23,680.92,1.09705449]
[1737926279526,0.29315626,682.23,680.93,0.26967467]
[1737926280824,0.29315626,682.23,680.92,1.09705449]
[1737926281131,0.29315626,682.23,680.96,1.09705449]
[1737926282132,0.29315626,682.23,680.97,0.26967596]
[1737926284034,0.29315626,682.23,681.01,1.09705449]
[1737926284333,0.29315626,682.23,681.02,0.26967596]
[1737926287436,0.29315626,682.23,681.09,1.09705449]
[1737926287635,0.29315626,682.23,681.1,0.26967596]
[1737926288335,0.29315626,682.23,681.09,1.09705449]
[1737926288533,0.29315626,682.23,681.1,0.26968067]
[1737926289237,0.29315626,682.23,681.11,0.2696833]
[1737926289438,0.29315626,682.23,681.12,0.2696833]
[1737926289639,0.29315626,682.23,681.09,1.09705449]
[1737926289838,0.29315626,682.23,681.1,0.26968309]
[1737926291334,0.29315626,682.23,681.11,0.26968309]
[1737926291633,0.29315626,682.23,681.08,1.09705449]
[1737926293840,0.29315626,682.23,680.81,1.09705449]
[1737926297639,0.29315626,682.23,680.82,0.2696837]
[1737926298532,0.29315626,682.23,680.83,0.2696837]
[1737926298733,0.29315626,682.23,680.79,0.2696837]
[1737926301140,0.29315626,682.23,680.94,1.09705449]
[1737926301340,0.29315626,682.23,680.95,0.2696837]
[1737926302042,0.29315626,682.23,680.96,0.26967946]
[1737926302341,0.29315626,682.23,680.97,0.26967946]
[1737926302542,0.29315626,682.23,680.98,0.26967946]
[1737926302742,0.29315626,682.23,680.94,1.09705449]
[1737926302943,0.29315626,682.23,680.95,0.26968292]
[1737926303238,0.29315626,682.23,681.0,1.09705449]
[1737926308744,0.29315626,682.23,681.04,1.09705449]
[1737926316048,0.29315626,682.23,681.05,1.09705449]
[1737926316742,0.29315626,682.23,681.06,0.26967952]
[1737926317642,0.29315626,682.23,681.05,1.09705449]
[1737926317845,0.29315626,682.23,681.06,0.26967992]
[1737926318045,0.29315626,682.23,681.05,1.09705449]
[1737926319848,0.29315626,682.23,680.89,1.09550909]
[1737926319849,0.29315626,682.23,681.12,1.09705449]
[1737926326751,0.29315626,682.23,681.13,0.26968725]
[1737926328056,0.29315626,682.23,681.12,1.09705449]
[1737926328250,0.29315626,682.23,681.13,0.26968904]
[1737926330257,1.0959749,682.13,681.13,0.26968904]
[1737926330559,0.29320354,682.12,681.18,1.09705449]
[1737926333560,0.29320354,682.12,681.0,1.09550909]
[1737926333561,0.29320354,682.12,681.0,1.09705449]
[1737926337157,0.29320354,682.12,680.99,1.09705449]
[1737926339462,0.29320354,682.12,680.86,1.09705449]
[1737926343674,0.29320354,682.12,680.84,1.09705449]
[1737926348376,0.29320354,682.12,680.85,0.26969406]
[1737926349679,0.29320354,682.12,680.89,1.09705449]
[1737926349979,0.29320354,682.12,680.9,0.26969406]
[1737926350978,0.29320354,682.12,680.89,1.09705449]
[1737926351279,0.29320354,682.12,680.9,0.26969768]
[1737926352479,0.29320354,682.12,681.09,1.09705449]
[1737926354375,0.29320354,682.12,681.1,0.26969431]
[1737926355583,0.29320354,682.12,681.11,0.26969456]
[1737926355775,0.29320354,682.12,681.1,0.26969456]
[1737926355979,0.29320354,682.12,681.11,0.26969456]
[1737926356180,0.29320354,682.12,681.12,0.26969456]
[1737926356384,0.29320354,682.12,681.09,1.09705449]
[1737926356385,0.29320354,682.12,681.1,0.26969456]
[1737926356583,0.29320354,682.12,681.11,1.36674905]
[1737926356784,0.29320354,682.12,681.12,0.26969456]
[1737926358985,1.0959749,682.11,681.15,1.09705449]
[1737926359182,0.29321213,682.1,681.15,1.09705449]
[1737926361786,0.29321213,682.1,681.02,1.09705449]
[1737926372387,0.29321213,682.1,681.01,1.09705449]
[1737926375094,0.29321213,682.1,680.72,1.09705449]
[1737926375294,0.29321213,682.1,680.73,0.26972346]
[1737926376093,0.29321213,682.1,680.74,0.26972108]
[1737926376293,0.29321213,682.1,680.73,0.26972108]
[1737926376491,0.29321213,682.1,680.74,0.26972108]
[1737926376689,0.29321213,682.1,680.73,0.26972108]
[1737926376891,0.29321213,682.1,680.74,0.26972108]
[1737926377092,0.29321213,682.1,680.73,0.26972108]
[1737926377291,0.29321213,682.1,680.74,0.26972108]
[1737926377490,0.29321213,682.1,680.75,0.26972108]
[1737926377893,0.29321213,682.1,680.76,0.26972108]
[1737926378093,0.29321213,682.1,680.87,1.09705449]
[1737926379296,0.29321213,682.1,680.88,0.26972108]
[1737926380298,0.29321213,682.1,680.87,1.09705449]
[1737926380498,0.29321213,682.1,678.41,3.42413911]
[1737926380499,0.29321213,682.1,680.89,1.09705449]
[1737926380697,0.29321213,682.1,680.9,0.26972045]
[1737926384000,0.29321213,682.1,680.89,1.09705449]
[1737926384302,0.29321213,682.1,680.18,0.71804195]
[1737926384303,0.29321213,682.1,680.9,1.36677645]
[1737926384599,0.29321213,682.1,680.9,1.09705449]
[1737926385900,0.29321213,682.1,680.91,0.26971921]
[1737926387297,0.29321213,682.1,680.92,0.26971983]
[1737926387493,0.29321213,682.1,680.91,0.26971983]
[1737926387701,0.29321213,682.1,680.92,0.26971983]
[1737926387999,0.29321213,682.1,680.93,0.26971983]
[1737926388404,0.29321213,682.1,680.94,0.26971983]
[1737926388593,0.29321213,682.1,680.95,0.26971983]
[1737926388800,0.29321213,682.1,680.9,1.09705449]
[1737926389099,0.29321213,682.1,680.91,0.26971879]
[1737926390202,0.29321213,682.1,680.92,0.26971994]
[1737926390398,0.29321213,682.1,680.93,0.26971994]
[1737926390603,0.29321213,682.1,680.93,1.09705449]
[1737926390802,0.29321213,682.1,680.94,0.26971994]
[1737926393004,0.29321213,682.1,680.93,1.09705449]
[1737926393805,0.29321213,682.1,680.98,1.09705449]
[1737926396207,0.29321213,682.1,680.87,1.09705449]
[1737926396407,0.29321213,682.1,680.88,0.26967575]
[1737926396801,0.29321213,682.1,680.87,1.09705449]
[1737926397001,0.29321213,682.1,680.88,0.26967316]
[1737926398202,0.29321213,682.1,680.87,1.09705449]
[1737926398508,0.29321213,682.1,680.88,0.26966602]
[1737926399511,0.29321213,682.1,680.9,1.09705449]
[1737926399709,0.29321213,682.1,680.91,0.26966602]
[1737926400513,0.29321213,682.1,680.9,1.09705449]
[1737926400713,0.29321213,682.1,680.91,0.26966362]
[1737926403218,0.29321213,682.1,680.91,1.36671811]
[1737926403520,0.29321213,682.1,680.92,0.26966362]
[1737926406421,0.29321213,682.1,680.93,0.26967627]
[1737926406719,0.29321213,682.1,680.94,0.26967627]
[1737926407016,0.29321213,682.1,680.95,0.26967627]
[1737926407322,0.29321213,682.1,680.89,1.09705449]
[1737926407519,0.29321213,682.1,680.9,0.26967508]
[1737926409621,0.29321213,682.1,680.9,1.36672957]
[1737926409822,0.29321213,682.1,680.9,1.09705449]
[1737926412427,0.29321213,682.1,680.84,1.09705449]
[1737926413022,0.29321213,682.1,680.85,0.26961128]
[1737926414631,0.29321213,682.1,680.93,1.09705449]
[1737926414930,0.29321213,682.1,680.94,0.26961128]
[1737926416425,0.29321213,682.1,680.95,0.26961004]
[1737926416624,0.29321213,682.1,680.93,1.09705449]
[1737926416625,0.29321213,682.1,680.94,0.26961004]
[1737926417828,0.29321213,682.1,680.9,0.26961004]
[1737926418632,0.29321213,682.1,680.91,0.26961004]
[1737926418927,0.29321213,682.1,680.92,0.26961004]
[1737926419135,0.29321213,682.1,680.9,0.26961004]
[1737926419432,0.29321213,682.1,680.91,0.26961004]
[1737926419627,0.29321213,682.1,680.92,0.26961004]
[1737926419933,0.29321213,682.1,680.93,0.26961004]
[1737926420135,0.29321213,682.1,680.94,0.26961004]
[1737926420333,0.29321213,682.1,680.9,0.26961004]
[1737926420528,0.29321213,682.1,680.89,1.09705449]
[1737926420734,0.29321213,682.1,680.15,1.31461091]
[1737926420735,0.29321213,682.1,681.0,1.09705449]
[1737926420929,0.29321213,682.1,681.01,0.26962856]
[1737926423326,0.29321213,682.1,681.02,0.26963003]
[1737926423531,0.29321213,682.1,681.03,0.2696307]
[1737926423731,0.29321213,682.1,681.04,0.2696307]
[1737926423927,0.29321213,682.1,681.01,0.2696307]
[1737926424128,0.29321213,682.1,681.02,0.2696307]
[1737926424330,0.29321213,682.1,681.0,1.09705449]
[1737926424529,0.29321213,682.1,678.15,3.41255268]
[1737926424530,0.29321213,682.1,680.94,1.09705449]
[1737926424827,0.29321213,682.1,680.95,0.26963072]
[1737926425032,0.29321213,682.1,680.94,1.09705449]
[1737926428837,0.29321213,682.1,680.79,1.09705449]
[1737926429037,0.29321213,682.1,680.8,0.26963084]
[1737926432142,0.29321213,682.1,680.81,1.09705449]
[1737926432539,0.29321213,682.1,680.82,0.26963084]
[1737926435941,0.29321213,682.1,680.88,1.09705449]
[1737926436138,0.29321213,682.1,680.89,0.26963084]
[1737926436544,0.29321213,682.1,680.88,1.09705449]
[1737926436845,0.29321213,682.1,680.89,0.269626]
[1737926438548,0.29321213,682.1,680.88,1.09705449]
[1737926438549,0.29321213,682.1,680.9,0.269626]
[1737926438747,0.29321213,682.1,680.91,0.269626]
[1737926438944,0.29321213,682.1,681.15,1.09705449]
[1737926439249,0.29321213,682.1,681.16,0.269626]
[1737926441847,0.29321213,682.1,681.22,1.09705449]
[1737926442043,0.29321213,682.1,681.23,0.269626]
[1737926442247,0.29321213,682.1,681.22,1.09705449]
[1737926445150,0.29321213,682.1,681.11,1.09705449]
[1737926447750,0.29321213,682.1,681.08,1.09705449]
[1737926451953,0.29321213,682.1,681.09,1.09705449]
[1737926454149,0.29321213,682.1,681.1,0.26962833]
[1737926454753,0.29321213,682.1,681.12,1.09705449]
[1737926454950,0.29321213,682.1,681.13,0.26962833]
[1737926455553,0.29321213,682.1,681.12,1.09705449]
[1737926455857,0.29321213,682.1,681.13,0.26962849]
[1737926458259,0.29321213,682.1,681.2,1.09705449]
[1737926462762,0.29321213,682.1,681.21,0.26961313]
[1737926464860,0.29321213,682.1,681.2,1.09705449]
[1737926465162,0.29321213,682.1,680.51,2.198614]
[1737926465163,0.29321213,682.1,681.26,1.09705449]
[1737926467163,0.29321213,682.1,681.27,0.26961552]
[1737926468566,0.29321213,682.1,681.29,1.09705449]
[1737926468864,0.29321213,682.1,681.3,0.26961552]
[1737926469766,0.29321213,682.1,681.29,1.09705449]
[1737926470463,0.29321213,682.1,681.33,1.09705449]
[1737926473975,0.29321213,682.1,680.98,1.09705449]
[1737926474871,0.29321213,682.1,680.99,0.26957393]
[1737926475969,0.29321213,682.1,681.0,0.26953805]
[1737926476174,0.29321213,682.1,680.98,1.09705449]
[1737926476175,1.0959749,683.08,680.99,0.26953805]
[1737926476372,0.29283434,682.98,681.01,0.26953805]
[1737926476671,1.0959749,682.92,681.17,1.09705449]
[1737926476976,0.29286864,682.9,681.18,0.26953805]
[1737926480470,0.29286864,682.9,681.19,0.26953805]
[1737926480675,0.29286864,682.9,681.25,1.09705449]
[1737926480872,0.29286864,682.9,681.26,0.26953805]
[1737926482279,0.29286864,682.9,681.27,0.26950067]
[1737926482478,0.29286864,682.9,681.26,0.26950067]
[1737926482676,0.29286864,682.9,681.27,0.26950067]
[1737926482875,0.29286864,682.9,681.28,0.26950067]
[1737926483077,0.29286864,682.9,681.25,1.09705449]
[1737926483078,0.29286864,682.9,681.26,0.26950067]
[1737926484279,0.29286864,682.9,681.28,1.09705449]
[1737926484780,0.29286864,682.9,681.29,0.26950067]
[1737926486680,0.29286864,682.9,681.28,1.09705449]
[1737926486877,0.29286864,682.9,681.29,0.26949502]
[1737926487781,0.29286864,682.9,681.3,0.26949502]
[1737926487982,0.29286864,682.9,681.18,0.26949502]
[1737926488178,0.29286864,682.9,681.19,0.26949502]
[1737926488378,0.29286864,682.9,681.18,0.26949502]
[1737926488579,0.29286864,682.9,681.19,0.26949502]
[1737926488780,0.29286864,682.9,681.2,0.26949502]
[1737926488980,0.29286864,682.9,681.18,0.26949502]
[1737926489180,0.29286864,682.9,681.19,0.26949502]
[1737926489381,0.29286864,682.9,681.2,0.26949502]
[1737926489677,0.29286864,682.9,681.21,0.26949502]
[1737926489882,0.29286864,682.9,681.18,0.26949502]
[1737926490181,0.29286864,682.9,681.19,0.26949502]
[1737926491285,0.29286864,682.9,681.2,0.29359953]
[1737926491476,0.29286864,682.9,681.21,0.26949502]
[1737926491681,0.29286864,682.9,681.22,0.29359091]
[1737926491880,0.29286864,682.9,681.23,0.26949502]
[1737926493082,0.29286864,682.9,681.24,0.26946027]
[1737926493287,0.29286864,682.9,681.23,0.26946027]
[1737926493586,0.29286864,682.9,681.24,0.26946027]
[1737926493787,0.29286864,682.9,681.23,0.26946027]
[1737926493987,0.29286864,682.9,681.24,0.56304256]
[1737926494188,0.29286864,682.9,681.25,0.56303825]
[1737926494388,0.29286864,682.9,681.27,1.09705449]
[1737926494581,0.29286864,682.9,681.28,0.56302532]
[1737926494787,0.29286864,682.9,681.29,0.26942786]
[1737926496790,0.29286864,682.9,681.3,0.26943194]
[1737926498493,0.29286864,682.9,681.31,0.26943194]
[1737926498688,0.29286864,682.9,681.29,0.26943194]
[1737926498895,0.29286864,682.9,681.3,0.26943194]
[1737926499094,0.29286864,682.9,681.29,0.26943194]
[1737926499290,0.29286864,682.9,681.3,0.26943194]
[1737926499491,0.29286864,682.9,681.29,0.26943194]
[1737926499689,0.29286864,682.9,681.3,0.26943194]
[1737926499895,0.29286864,682.9,681.31,0.26943194]
[1737926500092,0.29286864,682.9,681.32,0.26943194]
[1737926500291,0.29286864,682.9,681.33,0.26943194]
[1737926500492,0.29286864,682.9,681.34,0.26943194]
[1737926500695,0.29286864,682.9,681.35,0.26943194]
[1737926500890,0.29286864,682.9,681.36,0.26943194]
[1737926501196,0.29286864,682.9,681.28,0.29356505]
[1737926501392,0.29286864,682.9,681.37,0.26944086]
[1737926501593,0.29286864,682.9,681.38,0.26944086]
[1737926501794,0.29286864,682.9,681.39,0.26944086]
[1737926501994,0.29286864,682.9,681.4,0.26944086]
[1737926502195,0.29286864,682.9,681.29,0.26944086]
[1737926502391,0.29286864,682.9,681.3,0.26944086]
[1737926502590,0.29286864,682.9,681.37,1.09705449]
[1737926502789,0.29286864,682.9,681.38,0.26944086]
[1737926504897,0.29286864,682.9,681.37,0.26944086]
[1737926505196,0.29286864,682.9,681.36,1.09705449]
[1737926505197,0.29286864,682.9,681.38,0.26944086]
[1737926505497,0.29286864,682.9,681.39,0.26944086]
[1737926505691,0.29286864,682.9,681.36,1.09705449]
[1737926505890,0.29286864,682.9,681.37,0.26943649]
[1737926507296,0.29286864,682.9,681.36,1.09705449]
[1737926507492,0.29286864,682.9,681.37,0.26943371]
[1737926507897,0.29286864,682.9,681.41,1.09705449]
[1737926508097,0.29286864,682.9,681.42,0.26943371]
[1737926511099,0.29286864,682.9,681.5,1.09705449]
[1737926511600,0.29286864,682.9,681.51,0.26943371]
[1737926511998,0.29286864,682.9,681.5,1.09705449]
[1737926512199,0.29286864,682.9,681.51,0.26943501]
[1737926514302,0.29286864,682.9,681.55,1.09705449]
[1737926514700,0.29286864,682.9,681.56,0.2694326]
[1737926515603,0.29286864,682.9,681.57,0.2694344]
[1737926515795,0.29286864,682.9,681.58,0.26943419]
[1737926515994,0.29286864,682.9,681.56,0.26943419]
[1737926516198,0.29286864,682.9,681.57,0.26943419]
[1737926516399,0.29286864,682.9,681.56,0.26943419]
[1737926518003,0.29286864,682.9,681.64,1.09705449]
[1737926518199,0.29286864,682.9,681.65,0.26943419]
[1737926521708,0.29286864,682.9,681.67,1.09705449]
[1737926522009,0.29286864,682.9,681.68,0.26943419]
[1737926522209,0.29286864,682.9,681.67,1.09705449]
[1737926524208,0.29286864,682.9,681.61,1.09705449]
[1737926524403,0.29286864,682.9,681.62,0.26943261]
[1737926526105,0.29286864,682.9,681.63,0.26943301]
[1737926526303,0.29286864,682.9,681.64,0.26943301]
[1737926526503,0.29286864,682.9,681.62,0.26943301]
[1737926526810,0.29286864,682.9,681.67,1.09705449]
[1737926530010,0.29286864,682.9,681.42,1.09550909]
[1737926530011,0.29286864,682.9,681.7,1.09705449]
[1737926532207,0.29286864,682.9,681.71,0.26943181]
[1737926532811,0.29286864,682.9,681.7,1.09705449]
[1737926533312,0.29286864,682.9,681.71,0.26943348]
[1737926535209,1.0959749,682.86,681.75,1.09705449]
[1737926535415,0.29289438,682.84,681.75,1.09705449]
[1737926538119,1.0959749,682.82,681.78,1.09705449]
[1737926538417,0.29291154,682.8,681.78,1.09705449]
[1737926544423,0.29291154,682.8,681.76,1.09705449]
[1737926548924,0.29291154,682.8,681.47,1.09705449]
[1737926551527,0.29291154,682.8,681.44,1.09705449]
[1737926553831,0.29291154,682.8,681.45,0.26943493]
[1737926554226,1.0959749,683.28,681.45,0.26943493]
[1737926555334,1.0959749,683.3,681.45,1.36648942]
[1737926555533,1.0959749,683.3,681.46,0.26943493]
[1737926556633,1.0959749,683.3,681.47,0.26943427]
[1737926556834,1.0959749,683.3,681.46,0.26943427]
[1737926557029,1.0959749,683.3,681.47,0.26943427]
[1737926557233,1.0959749,683.3,681.48,0.26943427]
[1737926557433,3.34878727,683.3,681.46,0.26943427]
[1737926557635,5.51135216,683.29,681.47,0.26943427]
[1737926557836,5.31298611,683.28,681.46,0.26943427]
[1737926558034,5.31298611,683.27,681.46,0.26943427]
[1737926558333,1.0959749,682.89,681.73,1.09705449]
[1737926561634,1.0959749,682.83,681.76,1.09705449]
[1737926565340,1.0959749,682.96,681.67,1.09705449]
[1737926568835,1.0959749,682.96,681.68,1.09705449]
[1737926572240,5.31360229,683.05,680.99,3.52978452]
[1737926572241,1.0959749,682.98,681.69,1.36648873]
[1737926572537,1.0959749,682.98,681.7,0.26943424]
[1737926574741,1.0959749,682.84,681.77,1.09705449]
[1737926577442,1.0959749,682.81,681.78,1.09705449]
[1737926577741,0.29291154,682.8,681.78,1.09705449]
[1737926579845,1.0959749,682.78,681.79,1.09705449]
[1737926580144,0.29292441,682.77,681.79,1.09705449]
[1737926583247,1.0959749,682.76,681.82,1.09705449]
[1737926583447,0.29293299,682.75,681.82,1.09705449]
[1737926586350,0.29293299,682.75,681.72,1.09705449]
[1737926589955,0.29293299,682.75,681.7,1.09705449]
[1737926596058,0.29293299,682.75,681.71,1.09705449]
[1737926599055,0.29293299,682.75,681.74,1.09705449]
[1737926600861,0.29293299,682.75,681.44,1.09705449]
[1737926603664,0.29293299,682.75,681.43,1.09705449]
[1737926606361,0.29293299,682.75,681.44,1.09705449]
[1737926607666,0.29293299,682.75,681.45,0.26944884]
[1737926611966,0.29293299,682.75,681.66,1.09705449]
[1737926612166,0.29293299,682.75,681.67,0.26944884]
[1737926614570,0.29293299,682.75,681.64,1.09705449]
[1737926614767,0.29293299,682.75,681.65,0.26945353]
[1737926614967,0.29293299,682.75,681.64,1.09705449]
[1737926615964,0.29293299,682.75,681.65,0.26946161]
[1737926617070,0.29293299,682.75,681.64,1.09705449]
[1737926617265,0.29293299,682.75,681.61,1.09705449]
[1737926617470,0.29293299,682.75,681.62,0.26946095]
[1737926620065,0.29293299,682.75,681.63,0.26945865]
[1737926620270,0.29293299,682.75,681.64,0.26945865]
[1737926620471,0.29293299,682.75,681.62,0.26945865]
[1737926620773,0.29293299,682.75,681.63,0.26945865]
[1737926620974,0.29293299,682.75,681.62,0.26945865]
[1737926621175,0.29293299,682.75,681.63,0.26945865]
[1737926621472,0.29293299,682.75,681.64,0.26945865]
[1737926621768,0.29293299,682.75,681.62,0.26945865]
[1737926621971,0.29293299,682.75,681.63,0.26945865]
[1737926622173,0.29293299,682.75,681.62,0.26945865]
[1737926622773,0.29293299,682.75,681.62,1.36651314]
[1737926622974,0.29293299,682.75,681.63,0.26945865]
[1737926623772,0.29293299,682.75,681.64,0.26945583]
[1737926623974,0.29293299,682.75,681.63,0.26945583]
[1737926624273,0.29293299,682.75,681.64,0.26945583]
[1737926624474,0.29293299,682.75,681.63,0.26945583]
[1737926624676,0.29293299,682.75,681.64,0.26945583]
[1737926624877,0.29293299,682.75,681.65,0.26945583]
[1737926625070,0.29293299,682.75,681.66,0.26945583]
[1737926625274,0.29293299,682.75,681.63,0.26945583]
[1737926625474,0.29293299,682.75,681.62,1.09705449]
[1737926625673,0.29293299,682.75,681.63,0.26945046]
[1737926628674,0.29293299,682.75,681.64,1.09705449]
[1737926628878,0.29293299,682.75,681.65,0.26945046]
[1737926631685,0.29293299,682.75,681.68,1.09705449]
[1737926631982,0.29293299,682.75,681.69,0.26945046]
[1737926634384,0.29293299,682.75,681.71,1.09705449]
[1737926634583,0.29293299,682.75,681.72,0.26945046]
[1737926635979,0.29293299,682.75,681.71,1.09705449]
[1737926636186,0.29293299,682.75,681.72,0.26944651]
[1737926636585,0.29293299,682.75,681.73,0.26944944]
[1737926636881,0.29293299,682.75,681.74,0.26944944]
[1737926637085,0.29293299,682.75,681.72,0.26944944]
[1737926637285,0.29293299,682.75,681.73,0.26944944]
[1737926637486,0.29293299,682.75,681.75,1.09705449]
[1737926637685,0.29293299,682.75,681.76,0.26944944]
[1737926640790,0.29293299,682.75,681.78,1.09705449]
[1737926644192,1.0959749,682.74,681.77,1.09705449]
[1737926644389,0.29294157,682.73,681.77,1.09705449]
[1737926646991,0.29294157,682.73,681.66,1.09705449]
[1737926649391,0.29294157,682.73,681.67,1.09705449]
[1737926652194,0.29294157,682.73,681.04,0.76195529]
[1737926652195,0.29294157,682.73,681.63,1.09705449]
[1737926652890,0.29294157,682.73,681.64,0.26943693]
[1737926653094,0.29294157,682.73,681.63,1.09705449]
[1737926654695,0.29294157,682.73,681.64,0.26944094]
[1737926655093,0.29294157,682.73,681.65,1.09705449]
[1737926660307,0.29294157,682.73,680.95,0.7174386]
[1737926660308,0.29294157,682.73,681.6,1.09705449]
[1737926663512,0.29294157,682.73,681.57,1.09705449]
[1737926665308,0.29294157,682.73,681.58,0.26943417]
[1737926666708,0.29294157,682.73,681.59,0.26943417]
[1737926666904,0.29294157,682.73,681.57,0.26943417]
[1737926669512,0.29294157,682.73,681.62,1.09705449]
[1737926669711,0.29294157,682.73,681.63,0.26943417]
[1737926671111,0.29294157,682.73,681.62,1.09705449]
[1737926671311,0.29294157,682.73,681.63,0.26943501]
[1737926672006,0.29294157,682.73,681.73,1.09705449]
[1737926673014,0.29294157,682.73,681.74,0.26943621]
[1737926677316,0.29294157,682.73,681.74,1.3664907]
[1737926677515,0.29294157,682.73,681.74,1.09705449]
[1737926677911,0.29294157,682.73,681.75,0.26943528]
[1737926678514,0.29294157,682.73,681.74,1.09705449]
[1737926680920,0.29294157,682.73,681.53,1.09550909]
[1737926680921,0.29294157,682.73,681.73,1.09705449]
[1737926684119,0.29294157,682.73,681.63,1.09705449]
[1737926684321,0.29294157,682.73,681.64,0.26945202]
[1737926687121,0.29294157,682.73,681.65,1.09705449]
[1737926690116,0.29294157,682.73,681.16,0.29361677]
[1737926690117,0.29294157,682.73,681.63,1.09705449]
[1737926690716,0.29294157,682.73,681.64,0.26945053]
[1737926692727,0.29294157,682.73,681.66,1.09705449]
[1737926694222,0.29294157,682.73,681.67,0.26944788]
[1737926694628,0.29294157,682.73,681.66,1.09705449]
[1737926696731,0.29294157,682.73,681.65,1.09705449]
[1737926700335,0.29294157,682.73,681.6,1.09705449]
[1737926704038,0.29294157,682.73,681.36,1.09550909]
[1737926704338,0.29294157,682.73,681.29,1.09705449]
[1737926705939,0.29294157,682.73,681.3,0.26948947]
[1737926706238,0.29294157,682.73,681.29,1.09705449]
[1737926707238,0.29294157,682.73,681.28,1.09705449]
[1737926709540,0.29294157,682.73,681.16,0.29361677]
[1737926712642,0.29294157,682.73,681.17,0.26957707]
[1737926712836,0.29294157,682.73,681.16,0.29361677]